fUST/lending_fUST_20241006
["ID","MTS","AMOUNT","RATE_DAILY","PERIOD"]
[339944375,1728177041812,-500.0,0.00013698,2]
[339944376,1728177041822,-500.0,0.00013698,2]
[339944377,1728177041831,-500.0,0.00013698,2]
[339944378,1728177041842,-240.31869725,0.00013698,2]
[339944379,1728177041852,-500.0,0.00013698,2]
[339944380,1728177041862,-500.0,0.00013698,2]
[339944381,1728177041871,-500.0,0.00013698,2]
[339944382,1728177041880,-500.0,0.00013698,2]
[339944383,1728177041890,-369.69370575,0.00013698,2]
[339944384,1728177041902,-500.0,0.00013698,2]
[339944385,1728177041912,-500.0,0.00013698,2]
[339944386,1728177041922,-500.0,0.00013698,2]
[339944387,1728177041934,-500.0,0.00013698,2]
[339944388,1728177041945,-329.01169591,0.00013698,2]
[339944389,1728177041956,-500.29848212,0.00013698,2]
[339944390,1728177041967,-961.58,0.00013698,2]
[339944391,1728177041977,-687.33,0.00013698,2]
[339944392,1728177041988,-500.0,0.00013698,2]
[339944393,1728177041999,-897.42,0.00013698,2]
[339944394,1728177042011,-500.0,0.00013698,2]
[339944395,1728177042022,-500.0,0.00013698,2]
[339944396,1728177042032,-500.0,0.00013698,2]
[339944397,1728177042042,-500.0,0.00013698,2]
[339944398,1728177042053,-534.25,0.00013698,2]
[339944399,1728177042063,-500.0,0.00013698,2]
[339944400,1728177042076,-1412.85,0.00013698,2]
[339944401,1728177042086,-500.0,0.00013698,2]
[339944402,1728177042095,-500.0,0.00013698,2]
[339944403,1728177042105,-500.0,0.00013698,2]
[339944404,1728177042114,-500.0,0.00013698,2]
[339944405,1728177042123,-500.0,0.00013698,2]
[339944406,1728177042133,-500.0,0.00013698,2]
[339944407,1728177042142,-500.0,0.00013698,2]
[339944408,1728177042151,-486.9522145,0.00013698,2]
[339944409,1728177042163,-500.0,0.00013698,2]
[339944410,1728177042172,-1378.75,0.00013698,2]
[339944411,1728177042182,-500.0,0.00013698,2]
[339944412,1728177042192,-500.0,0.00013698,2]
[339944413,1728177042202,-185.35952325,0.00013698,2]
[339944414,1728177042211,-500.0,0.00013698,2]
[339944415,1728177042221,-500.0,0.00013698,2]
[339944416,1728177042230,-586.27,0.00013698,2]
[339944417,1728177042240,-670.34,0.00013698,2]
[339944418,1728177042250,-500.0,0.00013698,2]
[339944419,1728177042259,-500.0,0.00013698,2]
[339944420,1728177042270,-671.16,0.00013698,2]
[339944421,1728177042279,-250.42,0.00013698,2]
[339944422,1728177042289,-500.0,0.00013698,2]
[339944423,1728177042298,-576.74,0.00013698,2]
[339944424,1728177042308,-500.0,0.00013698,2]
[339944425,1728177042317,-500.0,0.00013698,2]
[339944426,1728177042327,-1028.5,0.00013698,2]
[339944427,1728177042336,-500.0,0.00013698,2]
[339944428,1728177042345,-500.0,0.00013698,2]
[339944429,1728177042355,-500.0,0.00013698,2]
[339944430,1728177042364,-500.0,0.00013698,2]
[339944431,1728177042374,-500.0,0.00013698,2]
[339944432,1728177042384,-500.0,0.00013698,2]
[339944433,1728177042393,-500.0,0.00013698,2]
[339944434,1728177042402,-500.0,0.00013698,2]
[339944435,1728177042413,-500.0,0.00013698,2]
[339944436,1728177042423,-500.0,0.00013698,2]
[339944437,1728177042433,-557.44,0.00013698,2]
[339944438,1728177042442,-500.0,0.00013698,2]
[339944439,1728177042452,-500.0,0.00013698,2]
[339944440,1728177042461,-500.0,0.00013698,2]
[339944441,1728177042470,-500.0,0.00013698,2]
[339944442,1728177042480,-500.0,0.00013698,2]
[339944443,1728177042489,-500.0,0.00013698,2]
[339944444,1728177042499,-500.0,0.00013698,2]
[339944445,1728177042508,-500.0,0.00013698,2]
[339944446,1728177042517,-500.0,0.00013698,2]
[339944447,1728177042527,-500.0,0.00013698,2]
[339944448,1728177042537,-546.13,0.00013698,2]
[339944449,1728177042546,-500.0,0.00013698,2]
[339944450,1728177042556,-698.84,0.00013698,2]
[339944451,1728177042565,-500.0,0.00013698,2]
[339944452,1728177042574,-500.0,0.00013698,2]
[339944453,1728177042584,-500.0,0.00013698,2]
[339944454,1728177042593,-500.0,0.00013698,2]
[339944455,1728177042603,-500.0,0.00013698,2]
[339944456,1728177042613,-500.0,0.00013698,2]
[339944457,1728177042622,-520.4772992,0.00013698,2]
[339944458,1728177042643,-62.6061037,0.00013698,2]
[339944459,1728177042653,-192.03314863,0.00013698,2]
[339944460,1728177042674,-307.96685137,0.00013698,2]
[339944461,1728177042683,-500.0,0.00013698,2]
[339944462,1728177042694,-500.0,0.00013698,2]
[339944463,1728177042704,-500.0,0.00013698,2]
[339944464,1728177042715,-500.0,0.00013698,2]
[339944465,1728177042724,-500.0,0.00013698,2]
[339944466,1728177042736,-500.0,0.00013698,2]
[339944467,1728177042746,-500.0,0.00013698,2]
[339944468,1728177042756,-436.90108749,0.00013698,2]
[339944469,1728177042765,-500.0,0.00013698,2]
[339944470,1728177042775,-240.17074285,0.00013698,2]
[339944471,1728177042787,-259.82925715,0.00013698,2]
[339944472,1728177042796,-500.0,0.00013698,2]
[339944473,1728177042806,-526.19,0.00013698,2]
[339944474,1728177042815,-717.65,0.00013698,2]
[339944475,1728177042825,-500.0,0.00013698,2]
[339944476,1728177042835,-269.63074293,0.00013698,2]
[339944477,1728177042847,-230.36925707,0.00013698,2]
[339944478,1728177042858,-843.75,0.00013698,2]
[339944479,1728177042868,-500.0,0.00013698,2]
[339944480,1728177042877,-500.0,0.00013698,2]
[339944481,1728177042887,-1101.65,0.00013698,2]
[339944482,1728177042897,-659.18,0.00013698,2]
[339944483,1728177042909,-500.0,0.00013698,2]
[339944484,1728177042919,-1162.84,0.00013698,2]
[339944485,1728177042929,-500.0,0.00013698,2]
[339944486,1728177042939,-661.74,0.00013698,2]
[339944487,1728177042949,-685.34,0.00013698,2]
[339944488,1728177042958,-500.0,0.00013698,2]
[339944489,1728177042968,-448.25688415,0.00013698,2]
[339944490,1728177042978,-500.0,0.00013698,2]
[339944491,1728177042987,-500.0,0.00013698,2]
[339944492,1728177042997,-500.0,0.00013698,2]
[339944493,1728177043007,-823.2,0.00013698,2]
[339944494,1728177043017,-539.99,0.00013698,2]
[339944496,1728177043026,-500.0,0.00013698,2]
[339944497,1728177043037,-500.0,0.00013698,2]
[339944499,1728177043216,-500.0,0.00013698,2]
[339944500,1728177043226,-500.0,0.00013698,2]
[339944501,1728177043237,-500.0,0.00013698,2]
[339944502,1728177043247,-662.49,0.00013698,2]
[339944503,1728177043257,-500.0,0.00013698,2]
[339944504,1728177043267,-555.46,0.00013698,2]
[339944505,1728177043277,-500.0,0.00013698,2]
[339944506,1728177043287,-500.0,0.00013698,2]
[339944508,1728177043297,-500.0,0.00013698,2]
[339944510,1728177043307,-500.0,0.00013698,2]
[339944512,1728177043317,-500.0,0.00013698,2]
[339944513,1728177043327,-500.0,0.00013698,2]
[339944514,1728177043336,-500.0,0.00013698,2]
[339944515,1728177043346,-522.33,0.00013698,2]
[339944517,1728177043356,-500.0,0.00013698,2]
[339944518,1728177043367,-500.0,0.00013698,2]
[339944519,1728177043376,-501.21667364,0.00013698,2]
[339944520,1728177043386,-500.0,0.00013698,2]
[339944521,1728177043397,-187.37983026,0.00013698,2]
[339944522,1728177043407,-500.0,0.00013698,2]
[339944523,1728177043417,-500.0,0.00013698,2]
[339944525,1728177043427,-500.0,0.00013698,2]
[339944526,1728177043436,-500.0,0.00013698,2]
[339944527,1728177043446,-435.41503763,0.00013698,2]
[339944528,1728177043456,-500.0,0.00013698,2]
[339944529,1728177043466,-500.0,0.00013698,2]
[339944530,1728177043475,-500.0,0.00013698,2]
[339944531,1728177043485,-669.18,0.00013698,2]
[339944532,1728177043495,-190.84958206,0.00013698,2]
[339944533,1728177044040,-309.15041794,0.00013698,2]
[339944534,1728177044050,-883.27,0.00013698,2]
[339944535,1728177044060,-500.0,0.00013698,2]
[339944536,1728177044072,-500.0,0.00013698,2]
[339944537,1728177044082,-500.0,0.00013698,2]
[339944538,1728177044092,-500.0,0.00013698,2]
[339944539,1728177044102,-500.0,0.00013698,2]
[339944540,1728177044112,-500.0,0.00013698,2]
[339944541,1728177044122,-314.22001093,0.00013698,2]
[339944542,1728177044135,-185.77998907,0.00013698,2]
[339944543,1728177044144,-500.0,0.00013698,2]
[339944544,1728177044154,-500.0,0.00013698,2]
[339944545,1728177044166,-500.0,0.00013698,2]
[339944546,1728177044176,-551.53,0.00013698,2]
[339944547,1728177044186,-500.0,0.00013698,2]
[339944548,1728177044196,-500.0,0.00013698,2]
[339944549,1728177044206,-814.39,0.00013698,2]
[339944550,1728177044216,-583.26,0.00013698,2]
[339944551,1728177044226,-826.19,0.00013698,2]
[339944552,1728177044236,-500.0,0.00013698,2]
[339944553,1728177044245,-500.0,0.00013698,2]
[339944554,1728177044255,-500.0,0.00013698,2]
[339944555,1728177044265,-1000.0,0.00013698,2]
[339944556,1728177044274,-500.0,0.00013698,2]
[339944557,1728177044284,-500.0,0.00013698,2]
[339944558,1728177044294,-539.85,0.00013698,2]
[339944559,1728177044304,-599.92583376,0.00013698,2]
[339944560,1728177044314,-500.0,0.00013698,2]
[339944561,1728177044323,-500.0,0.00013698,2]
[339944562,1728177044333,-500.0,0.00013698,2]
[339944563,1728177044343,-500.0,0.00013698,2]
[339944564,1728177044353,-500.0,0.00013698,2]
[339944565,1728177044363,-500.0,0.00013698,2]
[339944566,1728177044372,-543.93,0.00013698,2]
[339944567,1728177044382,-500.0,0.00013698,2]
[339944568,1728177044393,-500.0,0.00013698,2]
[339944569,1728177044402,-151.0,0.00013698,2]
[339944570,1728177044414,-500.0,0.00013698,2]
[339944571,1728177044424,-500.0,0.00013698,2]
[339944572,1728177044436,-500.0,0.00013698,2]
[339944573,1728177044446,-747.9,0.00013698,2]
[339944574,1728177044456,-500.0,0.00013698,2]
[339944575,1728177044465,-151.0,0.00013698,2]
[339944576,1728177044475,-762.71,0.00013698,2]
[339944577,1728177044484,-587.48,0.00013698,2]
[339944578,1728177044493,-500.0,0.00013698,2]
[339944579,1728177044502,-900.64,0.00013698,2]
[339944580,1728177044512,-500.0,0.00013698,2]
[339944581,1728177044521,-500.0,0.00013698,2]
[339944582,1728177044530,-500.0,0.00013698,2]
[339944583,1728177044539,-313.97881001,0.00013698,2]
[339944584,1728177044549,-500.0,0.00013698,2]
[339944585,1728177044558,-1312.45,0.00013698,2]
[339944586,1728177044567,-500.0,0.00013698,2]
[339944587,1728177044577,-500.0,0.00013698,2]
[339944588,1728177044586,-500.0,0.00013698,2]
[339944589,1728177044596,-671.95,0.00013698,2]
[339944590,1728177044605,-500.0,0.00013698,2]
[339944591,1728177044615,-516.11,0.00013698,2]
[339944592,1728177044625,-500.0,0.00013698,2]
[339944593,1728177044635,-500.0,0.00013698,2]
[339944594,1728177044645,-500.0,0.00013698,2]
[339944595,1728177044656,-618.81434369,0.00013698,2]
[339944596,1728177044668,-500.0,0.00013698,2]
[339944597,1728177044678,-500.0,0.00013698,2]
[339944598,1728177044689,-500.0,0.00013698,2]
[339944599,1728177044699,-500.0,0.00013698,2]
[339944600,1728177044710,-500.0,0.00013698,2]
[339944601,1728177044720,-1878.06,0.00013698,2]
[339944602,1728177044730,-500.0,0.00013698,2]
[339944603,1728177044740,-570.17,0.00013698,2]
[339944604,1728177044750,-500.0,0.00013698,2]
[339944605,1728177044760,-500.0,0.00013698,2]
[339944606,1728177044770,-500.0,0.00013698,2]
[339944607,1728177044780,-500.0,0.00013698,2]
[339944608,1728177044791,-500.0,0.00013698,2]
[339944609,1728177044801,-500.0,0.00013698,2]
[339944610,1728177044812,-1337.64,0.00013698,2]
[339944611,1728177044822,-500.0,0.00013698,2]
[339944612,1728177044832,-553.49,0.00013698,2]
[339944613,1728177044842,-500.0,0.00013698,2]
[339944614,1728177044853,-500.0,0.00013698,2]
[339944615,1728177044865,-500.0,0.00013698,2]
[339944616,1728177044875,-705.57,0.00013698,2]
[339944617,1728177044886,-500.0,0.00013698,2]
[339944618,1728177044897,-500.0,0.00013698,2]
[339944619,1728177044907,-500.0,0.00013698,2]
[339944620,1728177044921,-500.0,0.00013698,2]
[339944621,1728177044932,-634.72,0.00013698,2]
[339944622,1728177044943,-199.404599,0.00013698,2]
[339944623,1728177044953,-500.0,0.00013698,2]
[339944624,1728177044963,-500.0,0.00013698,2]
[339944625,1728177044973,-500.0,0.00013698,2]
[339944626,1728177044984,-508.13147297,0.00013698,2]
[339944627,1728177044994,-889.18,0.00013698,2]
[339944628,1728177045006,-500.0,0.00013698,2]
[339944629,1728177045017,-500.0,0.00013698,2]
[339944630,1728177045029,-500.0,0.00013698,2]
[339944631,1728177045039,-709.35,0.00013698,2]
[339944632,1728177045049,-500.0,0.00013698,2]
[339944633,1728177045060,-500.0,0.00013698,2]
[339944634,1728177045069,-151.0,0.00013698,2]
[339944635,1728177045080,-500.0,0.00013698,2]
[339944636,1728177045091,-500.0,0.00013698,2]
[339944637,1728177045103,-500.0,0.00013698,2]
[339944638,1728177045113,-500.0,0.00013698,2]
[339944639,1728177045125,-804.11,0.00013698,2]
[339944640,1728177045135,-500.0,0.00013698,2]
[339944641,1728177045146,-151.0,0.00013698,2]
[339944642,1728177045157,-536.76,0.00013698,2]
[339944643,1728177045169,-500.0,0.00013698,2]
[339944644,1728177045179,-1964.09,0.00013698,2]
[339944645,1728177045190,-500.0,0.00013698,2]
[339944646,1728177045202,-1444.91,0.00013698,2]
[339944647,1728177045213,-500.0,0.00013698,2]
[339944648,1728177045225,-500.0,0.00013698,2]
[339944649,1728177045236,-1196.22,0.00013698,2]
[339944650,1728177045246,-500.0,0.00013698,2]
[339944651,1728177045256,-1148.16,0.00013698,2]
[339944652,1728177045266,-500.0,0.00013698,2]
[339944653,1728177045276,-500.0,0.00013698,2]
[339944654,1728177045285,-500.0,0.00013698,2]
[339944655,1728177045295,-500.0,0.00013698,2]
[339944656,1728177045305,-643.02888453,0.00013698,2]
[339944657,1728177045315,-500.0,0.00013698,2]
[339944658,1728177045325,-574.36,0.00013698,2]
[339944659,1728177045334,-687.6,0.00013698,2]
[339944660,1728177045344,-500.0,0.00013698,2]
[339944661,1728177045353,-848.61,0.00013698,2]
[339944662,1728177045363,-500.0,0.00013698,2]
[339944663,1728177045374,-500.0,0.00013698,2]
[339944664,1728177045384,-500.0,0.00013698,2]
[339944665,1728177045395,-876.13,0.00013698,2]
[339944666,1728177045407,-151.0,0.00013698,2]
[339944667,1728177045421,-500.0,0.00013698,2]
[339944668,1728177045431,-500.0,0.00013698,2]
[339944669,1728177045443,-500.0,0.00013698,2]
[339944670,1728177045454,-500.0,0.00013698,2]
[339944671,1728177045465,-500.0,0.00013698,2]
[339944672,1728177045474,-153.719184,0.00013698,2]
[339944673,1728177045484,-680.58,0.00013698,2]
[339944674,1728177045495,-500.0,0.00013698,2]
[339944675,1728177045504,-500.0,0.00013698,2]
[339944676,1728177045515,-631.93,0.00013698,2]
[339944677,1728177045526,-500.0,0.00013698,2]
[339944678,1728177045536,-635.23,0.00013698,2]
[339944679,1728177045546,-500.0,0.00013698,2]
[339944680,1728177045555,-151.0,0.00013698,2]
[339944681,1728177045565,-500.0,0.00013698,2]
[339944682,1728177045574,-500.0,0.00013698,2]
[339944683,1728177045585,-500.0,0.00013698,2]
[339944684,1728177045594,-500.0,0.00013698,2]
[339944685,1728177045603,-500.0,0.00013698,2]
[339944686,1728177045613,-506.75,0.00013698,2]
[339944687,1728177045622,-500.0,0.00013698,2]
[339944688,1728177045632,-151.0,0.00013698,2]
[339944689,1728177045641,-500.0,0.00013698,2]
[339944690,1728177045651,-975.83,0.00013698,2]
[339944691,1728177045660,-500.0,0.00013698,2]
[339944692,1728177045671,-500.0,0.00013698,2]
[339944693,1728177045680,-506.24,0.00013698,2]
[339944694,1728177045690,-500.0,0.00013698,2]
[339944695,1728177045699,-500.0,0.00013698,2]
[339944696,1728177045709,-500.0,0.00013698,2]
[339944697,1728177045718,-507.0,0.00013698,2]
[339944698,1728177045728,-529.93,0.00013698,2]
[339944699,1728177045739,-637.76493321,0.00013698,2]
[339944700,1728177045749,-713.21,0.00013698,2]
[339944701,1728177045758,-500.0,0.00013698,2]
[339944702,1728177045769,-500.0,0.00013698,2]
[339944703,1728177045779,-522.29388025,0.00013698,2]
[339944704,1728177045788,-500.0,0.00013698,2]
[339944705,1728177045798,-500.0,0.00013698,2]
[339944706,1728177045807,-500.0,0.00013698,2]
[339944707,1728177045817,-635.41,0.00013698,2]
[339944708,1728177045826,-500.0,0.00013698,2]
[339944709,1728177045836,-500.0,0.00013698,2]
[339944710,1728177045845,-500.0,0.00013698,2]
[339944711,1728177045854,-500.0,0.00013698,2]
[339944712,1728177045863,-578.88876582,0.00013698,2]
[339944713,1728177045873,-151.0,0.00013698,2]
[339944714,1728177045882,-942.121177,0.00013698,2]
[339944715,1728177045892,-500.0,0.00013698,2]
[339944716,1728177045901,-500.0,0.00013698,2]
[339944717,1728177045911,-619.38,0.00013698,2]
[339944718,1728177045920,-539.99838213,0.00013698,2]
[339944719,1728177045938,-402.12279487,0.00013698,2]
[339944720,1728177045948,-195.62921531,0.00013698,2]
[339944770,1728178081871,500.0,0.0002,120]
[339944802,1728178238251,-384.561172,0.00012,2]
[339944803,1728178238262,-514.22853819,0.00012504,2]
[339944804,1728178238275,-920.25012451,0.00012504,2]
[339944805,1728178238285,-92.2971717,0.00013,2]
[339944807,1728178239998,-2907.7028283,0.00013,2]
[339944809,1728178240008,-1667.6016924,0.00013205,2]
[339944811,1728178240018,-600.0,0.00013439,2]
[339944813,1728178240028,-300.0,0.00013449,2]
[339944815,1728178240039,-300.0,0.00013449,2]
[339944817,1728178240052,-5975.18664439,0.0001345,2]
[339944819,1728178240063,-3000.0,0.000135,2]
[339944820,1728178240073,-3249.88831914,0.00013578,2]
[339944822,1728178240083,-600.0,0.00013579,2]
[339944823,1728178240094,-214.79514991,0.00013588,2]
[339944824,1728178240103,-720.65051865,0.00013598,2]
[339944825,1728178240113,-558.56388,0.00013677,2]
[339944826,1728178240124,-921.33659703,0.00013678,2]
[339944827,1728178240134,-38177.2637422,0.00013678,2]
[339944828,1728178240145,-13964.2692749,0.00013678,2]
[339944829,1728178240155,-185.29,0.00013688,2]
[339944830,1728178240167,-191413.94369157,0.00013688,2]
[339944831,1728178240221,-8163.42427973,0.00013688,2]
[339944832,1728178242910,-3717.25707667,0.00013688,2]
[339944836,1728178243054,-13224.60971724,0.00013688,2]
[339944837,1728178243065,-12544.34768779,0.00013688,2]
[339944838,1728178243075,-111714.154199,0.00013688,2]
[339944839,1728178243086,-999.90001,0.00013697,2]
[339944840,1728178243098,-500.0,0.00013698,2]
[339944841,1728178243108,-511.43573774,0.00013698,2]
[339944842,1728178243117,-500.0,0.00013698,2]
[339944843,1728178243127,-172.9731161,0.00013698,2]
[339944844,1728178243136,-226.70521831,0.00013698,2]
[339944845,1728178243146,-500.0,0.00013698,2]
[339944846,1728178243156,-500.0,0.00013698,2]
[339944847,1728178243166,-649.77468234,0.00013698,2]
[339944848,1728178243176,-500.0,0.00013698,2]
[339944849,1728178243186,-500.0,0.00013698,2]
[339944850,1728178243195,-500.0,0.00013698,2]
[339944851,1728178243205,-442.41740131,0.00013698,2]
[339944852,1728178243214,-500.0,0.00013698,2]
[339944853,1728178243224,-500.0,0.00013698,2]
[339944854,1728178243235,-500.0,0.00013698,2]
[339944855,1728178243245,-500.0,0.00013698,2]
[339944856,1728178243257,-500.0,0.00013698,2]
[339944857,1728178243267,-500.0,0.00013698,2]
[339944858,1728178243278,-500.0,0.00013698,2]
[339944859,1728178243288,-175.98233897,0.00013698,2]
[339944860,1728178243298,-500.0,0.00013698,2]
[339944861,1728178243309,-500.0,0.00013698,2]
[339944862,1728178243320,-154.84227764,0.00013698,2]
[339944863,1728178243331,-500.0,0.00013698,2]
[339944864,1728178243343,-500.0,0.00013698,2]
[339944865,1728178243356,-500.0,0.00013698,2]
[339944866,1728178243366,-500.0,0.00013698,2]
[339944867,1728178243377,-500.0,0.00013698,2]
[339944868,1728178243389,-500.0,0.00013698,2]
[339944869,1728178243400,-500.0,0.00013698,2]
[339944870,1728178243410,-500.0,0.00013698,2]
[339944871,1728178243421,-500.0,0.00013698,2]
[339944872,1728178243432,-500.0,0.00013698,2]
[339944873,1728178243444,-500.0,0.00013698,2]
[339944874,1728178243455,-500.0,0.00013698,2]
[339944875,1728178243467,-500.0,0.00013698,2]
[339944876,1728178243477,-500.0,0.00013698,2]
[339944877,1728178243487,-500.0,0.00013698,2]
[339944878,1728178243497,-500.0,0.00013698,2]
[339944879,1728178243508,-500.0,0.00013698,2]
[339944880,1728178243520,-500.0,0.00013698,2]
[339944881,1728178243530,-500.0,0.00013698,2]
[339944882,1728178243539,-500.0,0.00013698,2]
[339944883,1728178243551,-500.0,0.00013698,2]
[339944884,1728178243562,-500.0,0.00013698,2]
[339944885,1728178243574,-631.71,0.00013698,2]
[339944886,1728178243586,-664.24,0.00013698,2]
[339944887,1728178243597,-500.0,0.00013698,2]
[339944888,1728178243608,-500.0,0.00013698,2]
[339944889,1728178243619,-500.0,0.00013698,2]
[339944890,1728178243630,-500.0,0.00013698,2]
[339944891,1728178243640,-500.0,0.00013698,2]
[339944892,1728178243650,-500.0,0.00013698,2]
[339944893,1728178243659,-374.55537883,0.00013698,2]
[339944894,1728178243670,-500.0,0.00013698,2]
[339944895,1728178243680,-500.0,0.00013698,2]
[339944896,1728178243690,-500.0,0.00013698,2]
[339944897,1728178243699,-500.0,0.00013698,2]
[339944898,1728178243709,-500.0,0.00013698,2]
[339944899,1728178243719,-500.0,0.00013698,2]
[339944900,1728178243729,-500.0,0.00013698,2]
[339944901,1728178243739,-524.31,0.00013698,2]
[339944902,1728178243748,-500.0,0.00013698,2]
[339944903,1728178243758,-500.0,0.00013698,2]
[339944904,1728178243767,-500.0,0.00013698,2]
[339944905,1728178243777,-720.37,0.00013698,2]
[339944906,1728178243787,-500.0,0.00013698,2]
[339944907,1728178243797,-500.0,0.00013698,2]
[339944908,1728178243806,-500.0,0.00013698,2]
[339944909,1728178243824,-1167.25,0.00013698,2]
[339944910,1728178243837,-500.0,0.00013698,2]
[339944911,1728178243847,-500.0,0.00013698,2]
[339944912,1728178243858,-500.0,0.00013698,2]
[339944913,1728178243869,-500.0,0.00013698,2]
[339944914,1728178243879,-500.0,0.00013698,2]
[339944915,1728178243890,-500.0,0.00013698,2]
[339944916,1728178243900,-500.0,0.00013698,2]
[339944917,1728178243911,-500.0,0.00013698,2]
[339944918,1728178243921,-500.0,0.00013698,2]
[339944919,1728178243931,-500.0,0.00013698,2]
[339944920,1728178243941,-500.0,0.00013698,2]
[339944921,1728178243951,-500.0,0.00013698,2]
[339944922,1728178243961,-500.0,0.00013698,2]
[339944923,1728178243971,-500.0,0.00013698,2]
[339944924,1728178243981,-500.0,0.00013698,2]
[339944925,1728178243991,-671.71,0.00013698,2]
[339944926,1728178244001,-500.0,0.00013698,2]
[339944927,1728178244011,-500.0,0.00013698,2]
[339944928,1728178244020,-500.0,0.00013698,2]
[339944929,1728178244030,-1000.0,0.00013698,2]
[339944930,1728178244041,-500.0,0.00013698,2]
[339944931,1728178244051,-500.0,0.00013698,2]
[339944932,1728178244061,-716.74,0.00013698,2]
[339944933,1728178244071,-500.0,0.00013698,2]
[339944934,1728178244081,-500.0,0.00013698,2]
[339944935,1728178244093,-500.0,0.00013698,2]
[339944936,1728178244104,-500.0,0.00013698,2]
[339944937,1728178244115,-500.0,0.00013698,2]
[339944938,1728178244125,-500.0,0.00013698,2]
[339944939,1728178244135,-500.0,0.00013698,2]
[339944940,1728178244144,-500.0,0.00013698,2]
[339944941,1728178244155,-500.0,0.00013698,2]
[339944942,1728178244164,-500.0,0.00013698,2]
[339944943,1728178244176,-500.0,0.00013698,2]
[339944944,1728178244187,-500.0,0.00013698,2]
[339944945,1728178244198,-500.0,0.00013698,2]
[339944946,1728178244208,-500.0,0.00013698,2]
[339944947,1728178244220,-674.49,0.00013698,2]
[339944948,1728178244232,-500.0,0.00013698,2]
[339944949,1728178244242,-500.0,0.00013698,2]
[339944950,1728178244254,-500.51,0.00013698,2]
[339944951,1728178244265,-500.0,0.00013698,2]
[339944952,1728178244276,-1317.42,0.00013698,2]
[339944953,1728178244287,-500.0,0.00013698,2]
[339944954,1728178244299,-500.0,0.00013698,2]
[339944955,1728178244310,-333.34871468,0.00013698,2]
[339944956,1728178244321,-500.0,0.00013698,2]
[339944957,1728178244331,-500.0,0.00013698,2]
[339944958,1728178244342,-500.0,0.00013698,2]
[339944959,1728178244352,-500.0,0.00013698,2]
[339944960,1728178244362,-500.0,0.00013698,2]
[339944961,1728178244372,-500.0,0.00013698,2]
[339944962,1728178244384,-5000.0,0.00013698,2]
[339944963,1728178244396,-183.00062632,0.00013698,2]
[339944964,1728178244406,-585.47,0.00013698,2]
[339944965,1728178244417,-500.0,0.00013698,2]
[339944966,1728178244428,-500.0,0.00013698,2]
[339944967,1728178244439,-517.36,0.00013698,2]
[339944968,1728178244451,-500.0,0.00013698,2]
[339944969,1728178244463,-508.5642585,0.00013698,2]
[339944970,1728178244476,-500.0,0.00013698,2]
[339944971,1728178244486,-393.64110714,0.00013698,2]
[339944972,1728178244497,-708.24,0.00013698,2]